bitfinex-derivatives/quotes_BTCF0:USTF0_20250506
["timestamp","ask_amount","ask_price","bid_price","bid_amount"]
[1746556255295,0.2880477,94968.0,94967.0,0.46649225]
[1746556256098,0.2880477,94968.0,94967.0,0.25588225]
[1746556257001,0.2880477,94968.0,94967.0,0.22318225]
[1746556257200,0.4249477,94968.0,94967.0,0.15858225]
[1746556257407,0.052655,94963.0,94953.0,0.00789929]
[1746556257706,0.2106654,94942.0,94941.0,0.031]
[1746556258005,0.2881054,94942.0,94941.0,0.031]
[1746556258206,0.2881054,94942.0,94941.0,0.2416676]
[1746556258391,0.2881054,94942.0,94941.0,0.40020552]
[1746556258705,0.3172054,94942.0,94941.0,0.18953792]
[1746556259101,0.3172054,94942.0,94941.0,0.19353792]
[1746556259493,0.3172054,94942.0,94941.0,0.40420552]
[1746556260102,0.10854,94942.0,94941.0,0.40420552]
[1746556260311,0.10854,94942.0,94941.0,0.41495435]
[1746556260907,0.3192054,94942.0,94941.0,0.42276043]
[1746556262107,0.3192054,94942.0,94941.0,0.43276043]
[1746556262305,0.3192054,94942.0,94941.0,0.42276043]
[1746556262506,0.3192054,94942.0,94941.0,0.21209283]
[1746556262701,0.3192054,94942.0,94941.0,0.42276043]
[1746556263609,0.3192054,94942.0,94941.0,0.21209283]
[1746556264120,0.3192054,94942.0,94941.0,0.42276043]
[1746556270114,0.3192054,94942.0,94941.0,0.41876043]
[1746556270312,0.3192054,94942.0,94941.0,0.41976043]
[1746556271709,0.3192454,94942.0,94941.0,0.41976043]
[1746556272211,0.3192454,94942.0,94941.0,0.198344]
[1746556272412,0.3192454,94942.0,94941.0,0.4090116]
[1746556273009,0.3192454,94942.0,94941.0,0.4406116]
[1746556273827,0.3192454,94942.0,94941.0,0.4396116]
[1746556274027,0.3192454,94942.0,94941.0,0.229944]
[1746556274315,0.3192454,94942.0,94941.0,0.167344]
[1746556276321,0.3202454,94942.0,94941.0,0.166344]
[1746556276818,0.3192454,94942.0,94941.0,0.166344]
[1746556277916,0.4245734,94942.0,94941.0,0.166344]
[1746556279624,0.4245734,94942.0,94941.0,0.15853792]
[1746556280020,0.2106809,94935.0,94934.0,0.0312]
[1746556280212,0.2106832,94934.0,94933.0,0.04644]
[1746556280416,0.2427832,94934.0,94933.0,0.04644]
[1746556281220,0.2427832,94934.0,94933.0,0.10754]
[1746556282527,0.2437832,94934.0,94933.0,0.10754]
[1746556283027,0.2427832,94934.0,94933.0,0.10754]
[1746556285529,0.2427832,94934.0,94933.0,0.3182254]
[1746556285827,0.2106832,94934.0,94933.0,0.3182254]
[1746556286721,0.2106832,94934.0,94933.0,0.10754]
[1746556293626,0.2424832,94934.0,94933.0,0.10754]
[1746556295527,0.6032832,94934.0,94933.0,0.04644]
[1746556295927,0.6042832,94934.0,94933.0,0.04644]
[1746556296932,0.6032832,94934.0,94933.0,0.04644]
[1746556297131,0.6052832,94934.0,94933.0,0.04644]
[1746556298733,0.6032832,94934.0,94933.0,0.04644]
[1746556298935,0.6042832,94934.0,94933.0,0.04644]
[1746556299330,0.6052832,94934.0,94933.0,0.04644]
[1746556302537,0.3226832,94934.0,94933.0,0.2571254]
[1746556302739,0.002,94934.0,94933.0,0.41504217]
[1746556303222,0.2126832,94934.0,94933.0,0.59304217]
[1746556303429,0.002,94934.0,94933.0,0.44605677]
[1746556303733,0.2910032,94934.0,94933.0,0.44605677]
[1746556304036,0.2910032,94934.0,94933.0,0.65674217]
[1746556304336,0.002,94934.0,94933.0,0.65674217]
[1746556304532,0.08028,94934.0,94933.0,0.65674217]
[1746556305229,0.2909632,94934.0,94933.0,0.65674217]
[1746556305436,0.08028,94934.0,94933.0,0.65674217]
[1746556305927,0.2909632,94934.0,94933.0,0.65674217]
[1746556306632,0.002,94934.0,94933.0,0.65674217]
[1746556306940,0.08032,94934.0,94933.0,0.69674217]
[1746556308228,0.2910032,94934.0,94933.0,0.65674217]
[1746556308429,0.08032,94934.0,94933.0,0.65674217]
[1746556310640,0.2910032,94934.0,94933.0,0.65674217]
[1746556313439,0.2910032,94934.0,94933.0,1.01754217]
[1746556314342,0.2912832,94934.0,94933.0,1.01754217]
[1746556316446,0.2912832,94934.0,94933.0,0.80685677]
[1746556316648,0.2912832,94934.0,94933.0,1.01754217]
[1746556316945,0.2912832,94934.0,94933.0,0.80685677]
[1746556317145,0.2912832,94934.0,94933.0,0.62885677]
[1746556317941,0.3225832,94934.0,94933.0,0.62885677]
[1746556321850,0.3205832,94934.0,94933.0,0.62885677]
[1746556322346,0.2106771,94937.0,94936.0,0.2106765]
[1746556322551,0.2893971,94937.0,94936.0,0.2106765]
[1746556322742,0.2893971,94937.0,94936.0,0.43349943]
[1746556323546,0.2893971,94937.0,94936.0,0.22282293]
[1746556325055,0.2893971,94937.0,94936.0,0.43350163]
[1746556326856,0.2893971,94937.0,94936.0,0.22282293]
[1746556328550,0.2893971,94937.0,94936.0,0.43350163]
[1746556329051,0.2893971,94937.0,94936.0,0.22282293]
[1746556332055,0.2893971,94937.0,94936.0,0.43350163]
[1746556332253,0.2106743,94938.0,94937.0,0.2106765]
[1746556332459,0.2106709,94940.0,94939.0,0.2106721]
[1746556332764,0.2106676,94941.0,94940.0,0.2106698]
[1746556333261,0.2892276,94941.0,94940.0,0.2106698]
[1746556333458,0.2892276,94941.0,94940.0,0.42969197]
[1746556333653,0.2892276,94941.0,94940.0,0.21902217]
[1746556334462,0.2892276,94941.0,94940.0,0.18752217]
[1746556334656,0.3525276,94941.0,94940.0,0.18752217]
[1746556335361,0.3206276,94941.0,94940.0,0.18752217]
[1746556335565,0.3216276,94941.0,94940.0,0.18752217]
[1746556341168,0.2430676,94941.0,94940.0,0.18752217]
[1746556341468,0.3215076,94941.0,94940.0,0.18752217]
[1746556342572,0.3215476,94941.0,94940.0,0.18752217]
[1746556353875,0.3215476,94941.0,94940.0,0.15742217]
[1746556354070,0.2106832,94934.0,94933.0,0.04644]
[1746556354575,0.2106832,94934.0,94933.0,0.20464717]
[1746556356976,0.2126832,94934.0,94933.0,0.20464717]
[1746556358969,0.2126832,94934.0,94933.0,0.26684717]
[1746556360079,0.2126832,94934.0,94933.0,0.65553257]
[1746556360385,0.2910832,94934.0,94933.0,0.65553257]
[1746556364979,0.002,94934.0,94933.0,1.14633257]
[1746556365286,0.12409,94938.0,94937.0,0.2106765]
[1746556365481,0.07828,94938.0,94937.0,0.2106765]
[1746556365785,0.2106743,94938.0,94937.0,0.36928879]
[1746556366186,0.2106743,94938.0,94937.0,0.61178879]
[1746556366573,0.2889543,94938.0,94937.0,0.61178879]
[1746556367189,0.2889543,94938.0,94937.0,0.43378879]
[1746556377284,0.2106743,94938.0,94937.0,0.43378879]
[1746556377486,0.2887543,94938.0,94937.0,0.43378879]
[1746556381195,0.2887543,94938.0,94937.0,0.79458879]
[1746556391003,0.2106743,94938.0,94937.0,0.79458879]
[1746556393805,0.2422743,94938.0,94937.0,0.79458879]
[1746556396909,0.2422743,94938.0,94937.0,0.79658879]
[1746556397910,0.2422743,94938.0,94937.0,0.79558879]
[1746556400613,0.2422743,94938.0,94937.0,0.58491229]
[1746556401005,0.2422743,94938.0,94937.0,0.79558879]
[1746556401307,0.2422743,94938.0,94937.0,0.15961229]
[1746556401522,0.37860631,94938.0,94937.0,1e-08]
[1746556403012,0.28368,94938.0,94937.0,1e-08]
[1746556403217,0.2732743,94938.0,94937.0,1e-08]
[1746556403618,0.2732743,94938.0,94933.0,0.04644]
[1746556403619,0.2106832,94934.0,94933.0,0.40724]
[1746556404616,0.2436832,94934.0,94933.0,0.40724]
[1746556404816,0.2446832,94934.0,94933.0,0.40724]
[1746556405422,0.001,94934.0,94933.0,0.91618195]
[1746556406125,0.001,94934.0,94933.0,0.94808195]
[1746556407328,0.2564752,94938.0,94933.0,0.73739655]
[1746556407532,0.2564752,94938.0,94937.0,0.2106765]
[1746556408018,0.2106752,94938.0,94937.0,0.36847301]
[1746556408420,0.2106752,94938.0,94937.0,0.43007301]
[1746556408829,0.04579,94942.0,94938.0,0.0526685]
[1746556409127,0.2564554,94942.0,94941.0,0.2106676]
[1746556409519,0.2106654,94942.0,94941.0,0.36947405]
[1746556409926,0.2106654,94942.0,94941.0,0.40087405]
[1746556410229,0.2106654,94942.0,94941.0,0.40187405]
[1746556410429,0.2417654,94942.0,94941.0,0.40187405]
[1746556415433,0.0311,94942.0,94941.0,0.40187405]
[1746556416125,0.2417654,94942.0,94941.0,0.40187405]
[1746556417835,0.2417654,94942.0,94941.0,0.15980645]
[1746556418529,0.2717654,94942.0,94941.0,0.15980645]
[1746556419726,0.2717654,94942.0,94941.0,0.15880645]
[1746556420033,0.2106809,94935.0,94934.0,0.3608]
[1746556420331,0.2106809,94935.0,94934.0,0.51805545]
[1746556420633,0.2106809,94935.0,94934.0,0.72873865]
[1746556421031,0.2722809,94935.0,94934.0,0.72873865]
[1746556421231,0.2722809,94935.0,94934.0,0.79183865]
[1746556422837,0.2722809,94935.0,94934.0,0.43103865]
[1746556423039,0.2722809,94935.0,94934.0,0.79183865]
[1746556424037,0.2722809,94935.0,94934.0,0.58115545]
[1746556428237,0.2722809,94935.0,94934.0,0.15725545]
[1746556430241,0.2732809,94935.0,94934.0,0.15725545]
[1746556431336,0.2106832,94934.0,94933.0,0.04644]
[1746556432345,0.2711832,94934.0,94933.0,0.04644]
[1746556432844,0.2721832,94934.0,94933.0,0.04644]
[1746556446951,0.2421832,94934.0,94933.0,0.04644]
[1746556448546,0.3197832,94934.0,94933.0,0.04644]
[1746556449155,0.2892832,94934.0,94933.0,0.04644]
[1746556450353,0.2892832,94934.0,94933.0,0.14194]
[1746556451047,0.2892832,94934.0,94933.0,0.15265003]
[1746556451453,0.2892832,94934.0,94933.0,0.14194]
[1746556452240,0.2892832,94934.0,94933.0,0.11084]
[1746556455054,0.2892832,94934.0,94933.0,0.3215254]
[1746556455556,0.2116832,94934.0,94933.0,0.3215254]
[1746556455755,0.2892832,94934.0,94933.0,0.3215254]
[1746556456351,0.0786,94934.0,94933.0,0.6823254]
[1746556456551,0.2892832,94934.0,94933.0,0.6823254]
[1746556458052,0.001,94934.0,94933.0,0.6823254]
[1746556458253,0.0786,94934.0,94933.0,0.84026083]
[1746556459159,0.0786,94934.0,94933.0,1.01826083]
[1746556459356,0.001,94934.0,94933.0,1.01826083]
[1746556459563,0.001,94934.0,94933.0,1.16826083]
[1746556460659,0.001,94934.0,94933.0,1.01826083]
[1746556460859,0.001,94934.0,94933.0,1.02826083]
[1746556461060,0.001,94934.0,94933.0,1.16826083]
[1746556461363,0.001,94934.0,94933.0,1.06826083]
[1746556461758,0.0526587,94956.0,94933.0,1.29291143]
[1746556461965,0.2882375,94955.0,94954.0,0.2106388]
[1746556462264,0.2106375,94955.0,94954.0,0.5714388]
[1746556462462,0.2106375,94955.0,94954.0,0.72916682]
[1746556462655,0.2882375,94955.0,94954.0,0.51852802]
[1746556463261,0.2882375,94955.0,94954.0,0.72916682]
[1746556463863,0.2892375,94955.0,94954.0,0.72916682]
[1746556464162,0.2892375,94955.0,94954.0,0.51852802]
[1746556464568,0.3197375,94955.0,94954.0,0.51852802]
[1746556469556,0.3197375,94955.0,94954.0,0.72916682]
[1746556469751,0.2892375,94955.0,94954.0,0.72916682]
[1746556471965,0.2892375,94955.0,94954.0,0.36836682]
[1746556472954,0.2892375,94955.0,94954.0,0.15772802]
[1746556473355,0.3195375,94955.0,94954.0,0.15772802]
[1746556474561,0.3195375,94955.0,94954.0,0.18942802]
[1746556474867,0.3194975,94955.0,94954.0,0.18942802]
[1746556476051,0.3194975,94955.0,94954.0,0.22242802]
[1746556478365,0.3194975,94955.0,94954.0,0.19072802]
[1746556478760,0.3524975,94955.0,94954.0,0.19072802]
[1746556480170,0.3524975,94955.0,94954.0,0.15772802]
[1746556480469,0.3524975,94955.0,94944.0,0.0332]
[1746556480470,0.2106588,94945.0,94944.0,0.0332]
[1746556480769,0.2106588,94945.0,94944.0,0.24162296]
[1746556481463,0.2106588,94945.0,94944.0,0.27272296]
[1746556481769,0.2423588,94945.0,94944.0,0.48338396]
[1746556485477,0.3199188,94945.0,94944.0,0.48338396]
[1746556486669,0.2882188,94945.0,94944.0,0.48338396]
[1746556488778,0.2106588,94945.0,94944.0,0.48338396]
[1746556488978,0.2882188,94945.0,94944.0,0.48338396]
[1746556490475,0.2106588,94945.0,94944.0,0.24162296]
[1746556490678,0.2882188,94945.0,94944.0,0.45228396]
[1746556491071,0.3193188,94945.0,94944.0,0.45228396]
[1746556491270,0.3193188,94945.0,94944.0,0.40228396]
[1746556499194,0.3501188,94945.0,94944.0,0.40228396]
[1746556499492,0.3501188,94945.0,94944.0,0.19162296]
[1746556499791,0.3501188,94945.0,94944.0,0.15842296]
[1746556500491,0.2106632,94943.0,94942.0,0.58178159]
[1746556500895,0.2106632,94943.0,94942.0,0.74051855]
[1746556501098,0.2106632,94943.0,94942.0,0.52985315]
[1746556501299,0.2106632,94943.0,94942.0,0.51953696]
[1746556503397,0.2106632,94943.0,94933.0,0.40724]
[1746556503398,0.2106832,94934.0,94933.0,0.40724]
[1746556503702,0.2106832,94934.0,94933.0,0.04644]
[1746556511199,0.07756,94934.0,94933.0,0.77632912]
[1746556511394,0.2882432,94934.0,94933.0,0.77632912]
[1746556516004,0.0526581,94957.0,94946.0,0.2106565]
[1746556516203,0.192614,94947.0,94946.0,0.5714565]
[1746556516397,0.4032683,94947.0,94946.0,0.72904569]
[1746556516793,0.114974,94947.0,94946.0,0.79084569]
[1746556517000,0.192694,94947.0,94946.0,0.79084569]
[1746556517200,0.192694,94947.0,94946.0,0.96884569]
[1746556518206,0.192694,94947.0,94946.0,0.79084569]
[1746556518398,0.114974,94947.0,94946.0,0.91084569]
[1746556518598,0.192654,94947.0,94946.0,0.95084569]
[1746556519199,0.114974,94947.0,94946.0,0.95084569]
[1746556519402,0.192654,94947.0,94946.0,0.95084569]
[1746556519607,0.4033083,94947.0,94946.0,0.91084569]
[1746556520501,0.192654,94947.0,94946.0,0.91084569]
[1746556521101,0.192654,94947.0,94946.0,0.93084569]
[1746556521500,0.192654,94947.0,94946.0,0.81084569]
[1746556521803,0.192654,94947.0,94946.0,0.82084569]
[1746556522106,0.4033083,94947.0,94946.0,0.82084569]
[1746556522700,0.4031883,94947.0,94946.0,0.82084569]
[1746556523396,0.4031883,94947.0,94946.0,0.58018919]
[1746556523609,0.4031883,94947.0,94946.0,0.21938919]
[1746556523808,0.4031883,94947.0,94946.0,0.15758919]
[1746556524110,0.2106632,94943.0,94942.0,0.22137975]
[1746556524707,0.2106632,94943.0,94942.0,0.2749654]
[1746556524894,0.2106632,94943.0,94942.0,0.0643]
[1746556525095,0.2426632,94943.0,94942.0,0.2217079]
[1746556525609,0.2426632,94943.0,94942.0,0.4323733]
[1746556527506,0.2426632,94943.0,94942.0,0.2217079]
[1746556528707,0.2426632,94943.0,94942.0,0.4323733]
[1746556530610,0.192534,94947.0,94946.0,0.2106565]
[1746556531008,0.4031883,94947.0,94946.0,0.36812225]
[1746556531412,0.4031883,94947.0,94946.0,0.43362225]
[1746556534017,0.3559283,94947.0,94946.0,0.43362225]
[1746556534225,0.4336483,94947.0,94946.0,0.43362225]
[1746556534919,0.3559283,94947.0,94946.0,0.43362225]
[1746556535120,0.4336083,94947.0,94946.0,0.43362225]
[1746556535614,0.4336083,94947.0,94946.0,0.22296575]
[1746556536513,0.4664083,94947.0,94946.0,0.43362225]
[1746556536713,0.4664083,94947.0,94946.0,0.22296575]
[1746556540512,0.4664083,94947.0,94946.0,0.43362225]
[1746556541019,0.4336083,94947.0,94946.0,0.43362225]
[1746556542019,0.4336083,94947.0,94946.0,0.22296575]
[1746556542422,0.4336083,94947.0,94946.0,0.43362225]
[1746556544216,0.4336083,94947.0,94946.0,0.22296575]
[1746556547622,0.4336083,94947.0,94946.0,0.43362225]
[1746556549922,0.4336083,94947.0,94946.0,0.22296575]
[1746556550323,0.4336083,94947.0,94946.0,0.15746575]
[1746556550624,0.2106632,94943.0,94942.0,0.0304]
[1746556550819,0.2106632,94943.0,94942.0,0.18747122]
[1746556551429,0.2430632,94943.0,94942.0,0.21957122]
[1746556554822,0.2430632,94943.0,94942.0,0.43023662]
[1746556555029,0.114974,94947.0,94942.0,0.21957122]
[1746556555231,0.357632,94947.0,94946.0,0.2106565]
[1746556555427,0.224574,94947.0,94946.0,0.2106565]
[1746556555633,0.4352283,94947.0,94946.0,0.36804312]
[1746556556129,0.4352283,94947.0,94946.0,0.43034312]
[1746556556522,0.114974,94947.0,94946.0,0.43034312]
[1746556556717,0.4033083,94947.0,94946.0,0.43034312]
[1746556561434,0.114974,94947.0,94946.0,0.43034312]
[1746556561628,0.3256283,94947.0,94946.0,0.43034312]
[1746556561834,0.114974,94947.0,94946.0,0.43034312]
[1746556562335,0.3256283,94947.0,94946.0,0.43034312]
[1746556563735,0.3256283,94947.0,94946.0,0.56034312]
[1746556564036,0.3256283,94947.0,94946.0,0.43034312]
[1746556566627,0.3256283,94947.0,94946.0,0.56034312]
[1746556567035,0.3256283,94947.0,94946.0,0.43034312]
[1746556571138,0.3256283,94947.0,94946.0,0.56034312]
[1746556571344,0.3256283,94947.0,94946.0,0.43034312]
[1746556572636,0.114974,94947.0,94936.0,0.3608]
[1746556572841,0.2106809,94935.0,94934.0,0.0656]
[1746556573336,0.2106809,94935.0,94934.0,0.22416888]
[1746556573639,0.2106809,94935.0,94934.0,0.43485208]
[1746556573958,0.0318,94935.0,94934.0,0.79565208]
[1746556574139,0.00516,94939.0,94938.0,0.2106743]
[1746556574336,0.00516,94939.0,94938.0,0.3806743]
[1746556574539,0.07768,94944.0,94943.0,0.2106632]
[1746556574842,0.288341,94944.0,94943.0,0.72845776]
[1746556575543,0.288341,94944.0,94943.0,0.78885776]
[1746556575939,0.07768,94944.0,94943.0,0.78885776]
[1746556576543,0.288341,94944.0,94943.0,0.78885776]
[1746556576936,0.07768,94944.0,94943.0,0.78885776]
[1746556577137,0.288341,94944.0,94943.0,0.78885776]
[1746556578440,0.07768,94944.0,94943.0,0.78885776]
[1746556578747,0.114974,94947.0,94946.0,0.2106565]
[1746556578938,0.3256283,94947.0,94946.0,0.2106565]
[1746556579140,0.3256283,94947.0,94946.0,0.3886565]
[1746556579339,0.3256283,94947.0,94946.0,0.54769817]
[1746556579548,0.3256283,94947.0,94946.0,0.61199817]
[1746556580135,0.3256283,94947.0,94946.0,0.43399817]
[1746556580339,0.114974,94947.0,94946.0,0.43399817]
[1746556580945,0.3256283,94947.0,94946.0,0.43399817]
[1746556581240,0.114974,94947.0,94946.0,0.54399817]
[1746556581941,0.3256283,94947.0,94946.0,0.54399817]
[1746556582144,0.3256283,94947.0,94946.0,0.43399817]
[1746556584049,0.3256283,94947.0,94946.0,0.56399817]
[1746556584846,0.3256283,94947.0,94946.0,0.43399817]
[1746556585456,0.3256283,94947.0,94946.0,0.57399817]
[1746556585843,0.3256283,94947.0,94946.0,0.43399817]
[1746556586649,0.3256283,94947.0,94946.0,0.46399817]
[1746556587548,0.3256283,94947.0,94946.0,0.43399817]
[1746556588452,0.3585283,94947.0,94946.0,0.43399817]
[1746556589251,0.114974,94947.0,94946.0,0.56399817]
[1746556589447,0.114974,94947.0,94946.0,0.57399817]
[1746556589647,0.057487,94947.0,94946.0,0.57399817]
[1746556589852,0.00516,94951.0,94950.0,0.2106477]
[1746556590038,0.0322,94958.0,94957.0,0.2106321]
[1746556590242,0.0322,94958.0,94957.0,0.7114321]
[1746556590437,0.0526537,94965.0,94957.0,0.7114321]
[1746556590438,0.24035832,94974.0,94969.0,0.2632519]
[1746556590645,0.2406011,94971.0,94970.0,0.2737033]
[1746556590845,0.2883211,94971.0,94970.0,0.7945033]
[1746556591040,0.2883211,94971.0,94970.0,0.79163776]
[1746556591245,0.22192844,94972.0,94971.0,0.2106011]
[1746556591450,0.22192844,94972.0,94971.0,0.2408011]
[1746556591649,0.22192844,94972.0,94971.0,0.0934]
[1746556591851,0.22192844,94972.0,94971.0,0.2738011]
[1746556592244,0.22192844,94972.0,94971.0,0.43121259]
[1746556592447,0.22192844,94972.0,94971.0,0.44189774]
[1746556593046,0.01132734,94972.0,94971.0,0.44189774]
[1746556593651,0.22192624,94972.0,94971.0,0.44189774]
[1746556593849,0.01132734,94972.0,94971.0,0.47189774]
[1746556594152,0.01132734,94972.0,94971.0,0.44189774]
[1746556594351,0.01132734,94972.0,94971.0,0.45189774]
[1746556595850,0.22192624,94972.0,94971.0,0.45189774]
[1746556596150,0.01132734,94972.0,94971.0,0.45189774]
[1746556597553,0.22192624,94972.0,94971.0,0.48189774]
[1746556597757,0.22192624,94972.0,94971.0,0.45189774]
[1746556598747,0.22192624,94972.0,94971.0,0.24129664]
[1746556598952,0.22192624,94972.0,94971.0,0.45189774]
[1746556599154,0.28622624,94972.0,94971.0,0.44189774]
[1746556599754,0.25492624,94972.0,94971.0,0.44189774]
[1746556602258,0.25492624,94972.0,94971.0,0.60189774]
[1746556605477,0.25492624,94972.0,94971.0,0.44189774]
[1746556605770,0.25492624,94972.0,94971.0,0.57189774]
[1746556606175,0.25492624,94972.0,94971.0,0.44189774]
[1746556606472,0.25492624,94972.0,94971.0,0.57189774]
[1746556607277,0.25492624,94972.0,94971.0,0.44189774]
[1746556608080,0.04432734,94972.0,94971.0,0.48189774]
[1746556608377,0.25492624,94972.0,94971.0,0.48189774]
[1746556608578,0.04432734,94972.0,94971.0,0.48189774]
[1746556608768,0.01132734,94972.0,94971.0,0.48189774]
[1746556608969,0.01132734,94972.0,94971.0,0.53189774]
[1746556609171,0.01132734,94972.0,94971.0,0.50189774]
[1746556609378,0.01132734,94972.0,94971.0,0.52189774]
[1746556609578,0.22192624,94972.0,94971.0,0.52189774]
[1746556609877,0.22192624,94972.0,94971.0,0.47189774]
[1746556611280,0.22192624,94972.0,94971.0,0.52189774]
[1746556611583,0.22192624,94972.0,94971.0,0.49189774]
[1746556611785,0.22192624,94972.0,94971.0,0.47189774]
[1746556612478,0.22192624,94972.0,94971.0,0.44189774]
[1746556612783,0.22192624,94972.0,94971.0,0.51949774]
[1746556612981,0.22192624,94972.0,94971.0,0.65949774]
[1746556616371,0.01132734,94972.0,94971.0,0.51949774]
[1746556616572,0.01132734,94972.0,94971.0,0.54949774]
[1746556616777,0.22192624,94972.0,94971.0,0.57949774]
[1746556616981,0.25282624,94972.0,94971.0,0.57949774]
[1746556617285,0.04222734,94972.0,94971.0,0.57949774]
[1746556617480,0.25282624,94972.0,94971.0,0.51949774]
[1746556618288,0.25282624,94972.0,94971.0,0.66949774]
[1746556618487,0.25282624,94972.0,94971.0,0.64949774]
[1746556618788,0.04222734,94972.0,94971.0,0.64949774]
[1746556618982,0.105,95000.0,94973.0,0.0526489]
[1746556619182,0.2105669,94987.0,94985.0,0.57137]
[1746556619384,0.2881222,94989.0,94985.0,0.57137]
[1746556619585,0.2881222,94989.0,94985.0,0.72895254]
[1746556619586,0.2105651,94988.0,94985.0,0.72895254]
[1746556619783,0.2105665,94987.0,94985.0,0.76025254]
[1746556619984,0.2105635,94988.0,94985.0,0.76025254]
[1746556620183,0.1302008,94989.0,94985.0,0.76025254]
[1746556620388,0.0316,94987.0,94985.0,0.79175254]
[1746556620593,0.0316,94987.0,94985.0,0.82175254]
[1746556620788,0.242166,94987.0,94985.0,0.83175254]
[1746556621087,0.242166,94987.0,94985.0,0.79974557]
[1746556621289,0.0326,94986.0,94985.0,0.79974557]
[1746556621691,0.0326,94986.0,94985.0,0.82974557]
[1746556623893,0.0326,94986.0,94985.0,0.79974557]
[1746556624078,0.2431678,94986.0,94985.0,0.79974557]
[1746556624283,0.2431678,94986.0,94985.0,0.43894557]
[1746556624484,0.3207278,94986.0,94985.0,0.00799303]
[1746556624685,0.2105856,94978.0,94968.0,0.0324]
[1746556624892,0.2105856,94978.0,94972.0,0.0655]
[1746556625087,0.2105856,94978.0,94977.0,0.78547858]
[1746556625483,0.2759856,94978.0,94977.0,0.78547858]
[1746556625882,0.2759856,94978.0,94977.0,0.57489078]
[1746556626788,0.2759856,94978.0,94977.0,0.58287907]
[1746556626988,0.3812736,94978.0,94977.0,0.42528829]
[1746556628089,0.2759856,94978.0,94977.0,0.42528829]
[1746556628895,0.2759856,94978.0,94977.0,0.00798829]
[1746556629096,0.2106077,94968.0,94967.0,0.2106095]
[1746556629392,0.2881677,94968.0,94967.0,0.36788629]
[1746556629579,0.2881677,94968.0,94967.0,0.37583216]
[1746556629983,0.3491677,94968.0,94967.0,0.37583216]
[1746556631094,0.3491677,94968.0,94967.0,0.16522266]
[1746556631288,0.3491677,94968.0,94967.0,0.37583266]
[1746556632697,0.3491677,94968.0,94967.0,0.52583266]
[1746556632887,0.3491677,94968.0,94967.0,0.55633266]
[1746556633696,0.3491677,94968.0,94967.0,0.54633266]
[1746556633885,0.3491677,94968.0,94967.0,0.40633266]
[1746556634595,0.3491677,94968.0,94967.0,0.16522266]
[1746556635394,0.3491677,94968.0,94967.0,0.37583266]
[1746556635990,0.3491677,94968.0,94967.0,0.43893266]
[1746556637891,0.0309,94968.0,94967.0,0.43893266]
[1746556638092,0.10846,94968.0,94967.0,0.43893266]
[1746556638686,0.10846,94968.0,94967.0,0.58893266]
[1746556638886,0.0309,94968.0,94967.0,0.58893266]
[1746556639194,0.07756,94969.0,94968.0,0.2106077]
[1746556639492,0.07756,94969.0,94968.0,0.4650077]
[1746556639696,0.07756,94969.0,94968.0,0.62267894]
[1746556640296,0.0327,94974.0,94973.0,0.2105966]
[1746556640588,0.0311,94985.0,94977.0,0.0526466]
[1746556640793,0.0311,94985.0,94984.0,0.5713723]
[1746556640794,0.24337,94985.0,94984.0,0.5713723]
[1746556640994,0.11036,94985.0,94984.0,0.5713723]
[1746556641194,0.11036,94985.0,94984.0,0.72947742]
[1746556641695,0.11036,94985.0,94984.0,0.79497742]
[1746556643306,0.32093,94985.0,94984.0,0.79497742]
[1746556647794,0.35203,94985.0,94984.0,0.51890512]
[1746556652005,0.35199,94985.0,94984.0,0.51890512]
[1746556653506,0.27447,94985.0,94984.0,0.51890512]
[1746556653708,0.35199,94985.0,94984.0,0.51890512]
[1746556658108,0.28809,94985.0,94984.0,0.51890512]
[1746556658408,0.31839,94985.0,94984.0,0.51890512]
[1746556658807,0.31839,94985.0,94984.0,0.58310512]
[1746556661813,0.2105944,94974.0,94973.0,0.3608]
[1746556662012,0.2105966,94973.0,94972.0,0.0619]
[1746556662215,0.2106144,94965.0,94964.0,0.3608]
[1746556662518,0.2882144,94965.0,94964.0,0.73009601]
[1746556663017,0.2882144,94965.0,94964.0,0.76049601]
[1746556665509,0.2882144,94965.0,94964.0,0.76841232]
[1746556668728,0.2106144,94965.0,94964.0,0.76841232]
[1746556668930,0.2882544,94965.0,94964.0,0.76841232]
[1746556669124,0.2882544,94965.0,94964.0,0.94641232]
[1746556670227,0.07764,94965.0,94964.0,0.94641232]
[1746556670430,0.2106084,94968.0,94967.0,0.21061]
[1746556670732,0.2882418,94971.0,94970.0,0.2106033]
[1746556671232,0.2882418,94971.0,94970.0,0.54721446]
[1746556671431,0.2882418,94971.0,94970.0,0.61171446]
[1746556673231,0.2882418,94971.0,94970.0,0.43371446]
[1746556673432,0.2106018,94971.0,94970.0,0.43371446]
[1746556675032,0.1302496,94973.0,94970.0,0.43371446]
[1746556675033,0.2881992,94973.0,94972.0,0.2105989]
[1746556675536,0.2105992,94973.0,94972.0,0.36930412]
[1746556676127,0.2881543,94975.0,94974.0,0.2105944]
[1746556676319,0.2881543,94975.0,94974.0,0.5713944]
[1746556676524,0.2881543,94975.0,94974.0,0.72965135]
[1746556676724,0.2881543,94975.0,94974.0,0.76045135]
[1746556679331,0.2105943,94975.0,94974.0,0.76045135]
[1746556679527,0.18729514,95013.0,94999.0,0.210539]
[1746556679732,0.2105352,95005.0,94999.0,0.43836]
[1746556679931,0.2105368,95001.0,95000.0,0.2105308]
[1746556680431,0.0305,95001.0,95000.0,0.36741281]
[1746556681035,0.2410346,95001.0,95000.0,0.37806035]
[1746556681232,0.2105346,95001.0,95000.0,0.37806035]
[1746556681939,0.2105346,95001.0,95000.0,0.15688201]
[1746556682138,0.2105346,95001.0,95000.0,0.36741881]
[1746556682632,0.2105346,95001.0,95000.0,0.15688201]
[1746556682838,0.2410346,95001.0,95000.0,0.15688201]
[1746556683641,0.2105634,94988.0,94987.0,0.3608]
[1746556683832,0.2886834,94988.0,94987.0,0.3608]
[1746556684532,0.3517834,94988.0,94987.0,0.51969807]
[1746556684929,0.7125834,94988.0,94987.0,0.02605693]
[1746556685735,0.2106144,94965.0,94956.0,0.4173]
[1746556685943,0.2106255,94961.0,94960.0,0.2106244]
[1746556686141,0.2106255,94960.0,94958.0,0.2106289]
[1746556686334,0.2410255,94960.0,94959.0,0.7014277]
[1746556686734,0.2410255,94960.0,94959.0,0.87009381]
[1746556687138,0.6018255,94960.0,94959.0,0.41341289]
[1746556687540,0.6018255,94960.0,94959.0,0.34341289]
[1746556687737,0.6018255,94960.0,94959.0,0.50341289]
[1746556687942,0.6018255,94960.0,94959.0,0.49128355]
[1746556689044,1.04557023,94960.0,94959.0,0.35128355]
[1746556690136,1.04557023,94960.0,94959.0,0.52928355]
[1746556690643,0.80454473,94960.0,94959.0,0.74928355]
[1746556690843,0.2632508,94977.0,94976.0,0.2632326]
[1746556691235,0.2105922,94975.0,94974.0,0.07772]
[1746556691840,0.2105922,94975.0,94974.0,0.44725972]
[1746556692038,0.2407922,94975.0,94974.0,0.44725972]